fUSD/lending_fUSD_20240601
["ID","MTS","AMOUNT","RATE_DAILY","PERIOD"]
[328351427,1717215038164,-43600.0,0.00028685,4]
[328351428,1717215038174,-166.29,0.00028688,2]
[328351429,1717215038183,-1150.0,0.00029,2]
[328351430,1717215038193,-213.22229642,0.0002905,2]
[328351431,1717215038203,-732.65,0.00029133,2]
[328351432,1717215038213,-293.121,0.00029308,2]
[328351433,1717215038222,-5145.0,0.00029308,2]
[328351434,1717215038232,-37980.0,0.00029308,2]
[328351435,1717215038242,-5772.0,0.00029308,2]
[328351436,1717215038251,-1469.0,0.00029308,2]
[328351437,1717215038260,-1063.0,0.00029308,2]
[328351438,1717215038270,-3032.03345484,0.00029394,2]
[328351439,1717215038280,-12217.83316314,0.00029427,2]
[328351440,1717215038290,-249.0,0.00029566,5]
[328351441,1717215038299,-628.69757734,0.000296,2]
[328351442,1717215038309,-150.0,0.00029698,4]
[328351443,1717215038322,-12461.50094149,0.00029785,2]
[328351444,1717215038332,-2882.3136497,0.00029785,2]
[328351445,1717215038344,-971.20710498,0.00029785,2]
[328351446,1717215038353,-152.82,0.0002999,2]
[328351447,1717215038364,-6208.53520196,0.0003,4]
[328351449,1717215040588,-2967.02203763,0.0003,4]
[328351450,1717215040650,-502.38314178,0.0003,4]
[328351451,1717215040761,-14202.69779344,0.0003,4]
[328351452,1717215040771,-19446.94875391,0.0003,4]
[328351453,1717215040781,-2669.15431714,0.0003,2]
[328351454,1717215040791,-1104.43453689,0.0003,2]
[328351455,1717215040802,-155.0,0.0003,2]
[328351456,1717215040811,-5701.25820291,0.0003,2]
[328351457,1717215040823,-10000.0,0.0003,8]
[328351458,1717215040833,-526.88,0.0003,2]
[328351459,1717215040842,-525.29,0.0003,2]
[328351460,1717215040852,-525.29,0.0003,2]
[328351461,1717215040862,-462.54,0.0003,2]
[328351462,1717215040871,-150.87686785,0.00030037,2]
[328351463,1717215040882,-165.55827953,0.00030037,5]
[328351464,1717215040892,-6238.80020075,0.00030037,2]
[328351465,1717215040903,-152.82,0.00030127,2]
[328351467,1717215040913,-152.82,0.00030127,2]
[328351469,1717215040923,-152.82,0.00030127,2]
[328351471,1717215040932,-12948.17594561,0.00030134,2]
[328351473,1717215040942,-13806.35189925,0.00030137,2]
[328351475,1717215040954,-8716.58810075,0.00030137,2]
[328351476,1717215040963,-155.43765974,0.00030137,2]
[328351477,1717215040972,-361.86040921,0.00030137,2]
[328351478,1717215040982,-154775.1138303,0.00030137,2]
[328351479,1717215040993,-387816.91624134,0.00030137,2]
[328351480,1717215041003,-151.0,0.00030137,7]
[328351481,1717215041012,-151.0,0.00030137,7]
[328351482,1717215041022,-213.568251,0.00030137,7]
[328351483,1717215041032,-151.0,0.00030137,7]
[328351484,1717215041041,-151.0,0.00030137,7]
[328351485,1717215041051,-151.0,0.00030137,7]
[328351486,1717215041060,-151.0,0.00030137,7]
[328351487,1717215041072,-151.0,0.00030137,7]
[328351488,1717215041081,-151.0,0.00030137,7]
[328351489,1717215041091,-151.0,0.00030137,7]
[328351490,1717215041100,-151.0,0.00030137,7]
[328351491,1717215041110,-151.0,0.00030137,7]
[328351492,1717215041119,-151.0,0.00030137,7]
[328351493,1717215041129,-204.740534,0.00030137,7]
[328351494,1717215041138,-204.740534,0.00030137,7]
[328351495,1717215041148,-151.0,0.00030137,7]
[328351496,1717215041158,-151.0,0.00030137,7]
[328351497,1717215041167,-151.0,0.00030175,7]
[328351498,1717215041177,-12217.83316314,0.00030182,2]
[328351499,1717215041186,-1000.0,0.00030327,2]
[328351500,1717215041195,-213.22229642,0.00030433,2]
[328351501,1717215041205,-38950.71317802,0.00030557,2]
[328351502,1717215042667,-349.345084,0.00030137,7]
[328351503,1717215042681,-531.01667298,0.00030557,2]
[328351504,1717215042723,-954.78280564,0.00030557,2]
[328351505,1717215042782,-338.97475123,0.00030557,2]
[328351506,1717215042945,-3501.14880136,0.00030557,2]
[328351507,1717215042957,-11853.62673462,0.00030557,2]
[328351508,1717215043055,-43869.73705615,0.00030557,2]
[328351509,1717215043064,-1000.0,0.00030557,2]
[328351510,1717215043074,-157.3718,0.00030657,2]
[328351511,1717215043083,-500.0,0.00030657,2]
[328351512,1717215043093,-151.0,0.00030791,4]
[328351513,1717215043103,-628.69757734,0.000308,2]
[328351514,1717215043113,-1333.33333,0.0003081,2]
[328351515,1717215043122,-152.82,0.0003081,2]
[328351516,1717215043132,-33600.41332761,0.0003082,2]
[328351517,1717215043141,-150.87686781,0.00030828,2]
[328351518,1717215043151,-1436.03810579,0.0003085,4]
[328351519,1717215043160,-381.76420571,0.00030931,2]
[328351520,1717215043170,-155.54628285,0.00030935,7]
[328351521,1717215043179,-151.0,0.00030936,7]
[328351522,1717215043188,-151.0,0.00030936,7]
[328351523,1717215043197,-151.0,0.00030936,7]
[328351524,1717215043207,-151.0,0.00030936,7]
[328351525,1717215043216,-151.0,0.00030936,7]
[328351527,1717215043225,-151.0,0.00030936,7]
[328351528,1717215043234,-151.0,0.00030936,7]
[328351529,1717215043243,-187.521517,0.00030936,7]
[328351530,1717215043253,-151.0,0.00030936,7]
[328351531,1717215043263,-204.740534,0.00030936,7]
[328351532,1717215043271,-204.740534,0.00030936,7]
[328351533,1717215043282,-151.0,0.00030936,7]
[328351534,1717215043292,-151.0,0.00030936,7]
[328351535,1717215043301,-349.345084,0.00030936,7]
[328351536,1717215043311,-12217.83316314,0.00030936,2]
[328351537,1717215043321,-153.73482735,0.00030939,7]
[328351538,1717215043331,-154.36304779,0.00030959,7]
[328351539,1717215043340,-152.82,0.0003097,2]
[328351540,1717215043351,-168211.8397736,0.0003098,7]
[328351541,1717215043361,-187.614361,0.0003098,7]
[328351542,1717215043372,-151.0,0.0003098,7]
[328351543,1717215043382,-10989.7,0.00031,9]
[328351544,1717215043391,-217.330604,0.00031,7]
[328351545,1717215043401,-1200.0,0.00031,2]
[328351546,1717215043411,-151.0,0.00031,7]
[328351547,1717215043421,-200.51003,0.00031,7]
[328351548,1717215043432,-151.0,0.00031,7]
[328351549,1717215043442,-158.671913,0.00031,7]
[328351550,1717215043452,-204.740534,0.00031,7]
[328351551,1717215043463,-204.740534,0.00031,7]
[328351552,1717215043473,-151.0,0.00031,7]
[328351553,1717215043483,-349.345084,0.00031,7]
[328351554,1717215043492,-154.36304779,0.00031026,7]
[328351555,1717215043501,-232.06098135,0.00031055,7]
[328351556,1717215043510,-232.06098135,0.00031072,7]
[328351557,1717215043520,-155.54628285,0.00031083,7]
[328351558,1717215043530,-221.82453536,0.00031112,7]
[328351559,1717215043539,-1071.44868822,0.00031121,4]
[328351560,1717215043549,-181.0,0.00031122,5]
[328351561,1717215043558,-4084.34453833,0.00031122,4]
[328351562,1717215043568,-1411.37289359,0.00031122,4]
[328351563,1717215043577,-2000.0,0.00031122,2]
[328351564,1717215043587,-200.0,0.00031122,2]
[328351565,1717215043597,-232.06098135,0.00031129,7]
[328351566,1717215043607,-614.0,0.00031139,2]
[328351567,1717215043616,-1647.0,0.00031139,2]
[328351568,1717215043625,-150.0,0.00031139,2]
[328351569,1717215043634,-152.747,0.00031139,2]
[328351570,1717215043643,-150.0,0.00031139,2]
[328351571,1717215043653,-264.847,0.00031139,2]
[328351572,1717215043663,-151.688,0.00031139,2]
[328351573,1717215043674,-200.0,0.00031139,2]
[328351574,1717215043685,-152.098,0.00031139,2]
[328351575,1717215043695,-155.853,0.00031139,2]
[328351576,1717215043704,-167.222,0.00031139,2]
[328351577,1717215043713,-285.792,0.00031139,2]
[328351578,1717215043722,-152.105,0.00031139,2]
[328351579,1717215043731,-183.442,0.00031139,2]
[328351580,1717215043741,-166.0,0.00031139,2]
[328351581,1717215043750,-160.377,0.00031139,2]
[328351582,1717215043759,-196.989,0.00031139,2]
[328351583,1717215043768,-247.276,0.00031139,2]
[328351584,1717215043777,-150.837,0.00031139,2]
[328351585,1717215043786,-987.513,0.00031139,2]
[328351586,1717215043796,-357.0,0.00031139,2]
[328351587,1717215043805,-1266.0,0.00031139,2]
[328351588,1717215043814,-169.264,0.00031139,2]
[328351589,1717215043824,-442.802,0.00031139,2]
[328351590,1717215043833,-1646.0,0.00031139,2]
[328351591,1717215043842,-808.0,0.00031139,2]
[328351592,1717215043851,-165.124,0.00031139,2]
[328351593,1717215043860,-2401.0,0.00031139,2]
[328351594,1717215043869,-446.0,0.00031139,2]
[328351595,1717215043878,-151.006,0.00031139,2]
[328351596,1717215043887,-217.0,0.00031139,2]
[328351597,1717215043896,-150.0,0.00031139,2]
[328351598,1717215043906,-1306.0,0.00031139,2]
[328351599,1717215043915,-1652.0,0.00031139,2]
[328351600,1717215043925,-545.0,0.00031139,2]
[328351601,1717215043934,-3169.0,0.00031139,2]
[328351602,1717215043943,-500.0,0.00031139,2]
[328351603,1717215043952,-500.0,0.00031139,2]
[328351604,1717215043961,-500.0,0.00031139,2]
[328351605,1717215043970,-500.0,0.00031139,2]
[328351606,1717215043980,-500.0,0.00031139,2]
[328351607,1717215043989,-500.0,0.00031139,2]
[328351608,1717215043998,-500.0,0.00031139,2]
[328351609,1717215044009,-500.0,0.00031139,2]
[328351610,1717215044018,-500.0,0.00031139,2]
[328351611,1717215044027,-500.0,0.00031139,2]
[328351612,1717215044037,-500.0,0.00031139,2]
[328351613,1717215044046,-500.0,0.00031139,2]
[328351614,1717215044055,-500.0,0.00031139,2]
[328351615,1717215044064,-500.0,0.00031139,2]
[328351616,1717215044073,-500.0,0.00031139,2]
[328351617,1717215044082,-500.0,0.00031139,2]
[328351618,1717215044091,-500.0,0.00031139,2]
[328351619,1717215044100,-500.0,0.00031139,2]
[328351620,1717215044109,-500.0,0.00031139,2]
[328351621,1717215044118,-500.0,0.00031139,2]
[328351622,1717215044128,-500.0,0.00031139,2]
[328351623,1717215044137,-500.0,0.00031139,2]
[328351624,1717215044146,-500.0,0.00031139,2]
[328351625,1717215044155,-500.0,0.00031139,2]
[328351626,1717215044164,-500.0,0.00031139,2]
[328351627,1717215044173,-500.0,0.00031139,2]
[328351628,1717215044183,-500.0,0.00031139,2]
[328351629,1717215044192,-500.0,0.00031139,2]
[328351630,1717215044201,-500.0,0.00031139,2]
[328351631,1717215044210,-500.0,0.00031139,2]
[328351632,1717215044219,-500.0,0.00031139,2]
[328351633,1717215044360,-500.0,0.00031139,2]
[328351634,1717215044370,-500.0,0.00031139,2]
[328351635,1717215044380,-500.0,0.00031139,2]
[328351636,1717215044389,-500.0,0.00031139,2]
[328351637,1717215044399,-500.0,0.00031139,2]
[328351638,1717215044409,-500.0,0.00031139,2]
[328351639,1717215044418,-500.0,0.00031139,2]
[328351640,1717215044428,-500.0,0.00031139,2]
[328351641,1717215044437,-500.0,0.00031139,2]
[328351642,1717215044447,-500.0,0.00031139,2]
[328351643,1717215044456,-500.0,0.00031139,2]
[328351644,1717215044465,-500.0,0.00031139,2]
[328351645,1717215044475,-500.0,0.00031139,2]
[328351646,1717215044484,-500.0,0.00031139,2]
[328351647,1717215044493,-500.0,0.00031139,2]
[328351648,1717215044503,-500.0,0.00031139,2]
[328351649,1717215044512,-500.0,0.00031139,2]
[328351650,1717215044523,-500.0,0.00031139,2]
[328351651,1717215044532,-500.0,0.00031139,2]
[328351652,1717215044541,-500.0,0.00031139,2]
[328351653,1717215044550,-500.0,0.00031139,2]
[328351654,1717215044559,-500.0,0.00031139,2]
[328351655,1717215044568,-500.0,0.00031139,2]
[328351656,1717215044577,-500.0,0.00031139,2]
[328351657,1717215044586,-462.6555514,0.00031139,2]
[328351658,1717215044599,-37.3444486,0.00031139,2]
[328351659,1717215044608,-500.0,0.00031139,2]
[328351660,1717215044617,-500.0,0.00031139,2]
[328351661,1717215044626,-464.79575529,0.00031139,2]
[328351662,1717215044637,-35.20424471,0.00031139,2]
[328351663,1717215044646,-500.0,0.00031139,2]
[328351664,1717215044655,-500.0,0.00031139,2]
[328351665,1717215044664,-291.93346555,0.00031139,2]
[328351666,1717215044680,-208.06653445,0.00031139,2]
[328351667,1717215044689,-241.2482796,0.00031139,2]
[328351668,1717215044701,-258.7517204,0.00031139,2]
[328351669,1717215044711,-338.054289,0.00031139,2]
[328351670,1717215044722,-161.945711,0.00031139,2]
[328351671,1717215044731,-500.0,0.00031139,2]
[328351672,1717215044740,-500.0,0.00031139,2]
[328351673,1717215044752,-81.73200683,0.00031139,2]
[328351674,1717215044763,-418.26799317,0.00031139,2]
[328351675,1717215044772,-31.91200883,0.00031139,2]
[328351676,1717215044783,-468.08799117,0.00031139,2]
[328351677,1717215044792,-500.0,0.00031139,2]
[328351678,1717215044802,-500.0,0.00031139,2]
[328351679,1717215044811,-500.0,0.00031139,2]
[328351680,1717215044821,-500.0,0.00031139,2]
[328351681,1717215044830,-500.0,0.00031139,2]
[328351682,1717215044839,-500.0,0.00031139,2]
[328351683,1717215044849,-500.0,0.00031139,2]
[328351684,1717215044858,-500.0,0.00031139,2]
[328351685,1717215044868,-500.0,0.00031139,2]
[328351686,1717215044876,-500.0,0.00031139,2]
[328351687,1717215044886,-500.0,0.00031139,2]
[328351688,1717215044895,-84.44518932,0.00031139,2]
[328351689,1717215046799,-548.32501706,0.00027887,2]
[328351690,1717215046808,-349.345084,0.00030137,7]
[328351691,1717215046817,-102.32989894,0.00031139,2]
[328351692,1717215046962,-313.22491174,0.00031139,2]
[328351693,1717215046972,-151.0,0.00031139,7]
[328351694,1717215046981,-500.0,0.00031139,2]
[328351695,1717215046990,-500.0,0.00031139,2]
[328351696,1717215046999,-500.0,0.00031139,2]
[328351697,1717215047008,-500.0,0.00031139,2]
[328351698,1717215047017,-500.0,0.00031139,2]
[328351699,1717215047026,-500.0,0.00031139,2]
[328351700,1717215047035,-500.0,0.00031139,2]
[328351701,1717215047043,-500.0,0.00031139,2]
[328351702,1717215047052,-500.0,0.00031139,2]
[328351703,1717215047061,-500.0,0.00031139,2]
[328351704,1717215047070,-500.0,0.00031139,2]
[328351705,1717215047079,-500.0,0.00031139,2]
[328351706,1717215047087,-500.0,0.00031139,2]
[328351707,1717215047096,-500.0,0.00031139,2]
[328351708,1717215047105,-500.0,0.00031139,2]
[328351709,1717215047113,-500.0,0.00031139,2]
[328351710,1717215047122,-500.0,0.00031139,2]
[328351711,1717215047131,-500.0,0.00031139,2]
[328351712,1717215047139,-500.0,0.00031139,2]
[328351713,1717215047148,-500.0,0.00031139,2]
[328351714,1717215047157,-500.0,0.00031139,2]
[328351715,1717215047166,-246.33072,0.00031139,7]
[328351716,1717215047176,-500.0,0.00031139,2]
[328351717,1717215047185,-500.0,0.00031139,2]
[328351718,1717215047194,-500.0,0.00031139,2]
[328351719,1717215047203,-154.95394285,0.0003119,7]
[328351720,1717215047212,-185.484106,0.00031206,2]
[328351721,1717215047221,-168.962267,0.00031206,2]
[328351722,1717215047230,-166.66666666,0.00031215,7]
[328351723,1717215047240,-154.33974297,0.00031229,7]
[328351724,1717215047249,-154.95394285,0.00031248,7]
[328351725,1717215047258,-152.67045402,0.00031292,7]
[328351726,1717215047267,-154.33974297,0.00031329,7]
[328351727,1717215047276,-881.59,0.0003137,2]
[328351728,1717215047285,-423.36,0.0003137,2]
[328351729,1717215047294,-732.65,0.00031397,2]
[328351730,1717215047303,-152.67045402,0.00031399,7]
[328351731,1717215047312,-380.0,0.00031409,2]
[328351732,1717215047321,-500.0,0.00031418,2]
[328351733,1717215047330,-200.0,0.00031418,2]
[328351734,1717215047339,-151.0,0.0003142,2]
[328351735,1717215047348,-380.0,0.0003142,2]
[328351736,1717215047358,-380.0,0.00031421,2]
[328351737,1717215047368,-380.0,0.0003143,2]
[328351738,1717215047377,-2000.0,0.00031433,2]
[328351739,1717215047386,-200.0,0.00031433,2]
[328351740,1717215047395,-375.84,0.00031435,2]
[328351741,1717215047405,-379.99,0.00031436,2]
[328351742,1717215047414,-380.0,0.00031438,2]
[328351743,1717215047424,-154.95394285,0.00031442,7]
[328351744,1717215047434,-154.33974297,0.00031443,7]
[328351745,1717215047443,-379.99,0.00031443,2]
[328351746,1717215047453,-380.0,0.00031444,2]
[328351747,1717215047462,-444.206614,0.00031462,2]
[328351748,1717215047472,-3606.876995,0.00031462,2]
[328351749,1717215047481,-2561.351919,0.00031462,2]
[328351751,1717215047492,-1590.543643,0.00031462,2]
[328351752,1717215047502,-601.111707,0.00031462,2]
[328351754,1717215047511,-721.375399,0.00031462,2]
[328351755,1717215047520,-318.108728,0.00031462,2]
[328351756,1717215047530,-12461.50094149,0.00031492,10]
[328351757,1717215047539,-3853.52075468,0.00031492,10]
[328351758,1717215047548,-152.67045402,0.00031497,7]
[328351759,1717215047557,-152.67045402,0.00031509,7]
[328351760,1717215047567,-150.13286761,0.00031509,7]
[328351761,1717215047576,-150.13286761,0.00031517,7]
[328351762,1717215047585,-221.82453536,0.00031544,7]
[328351763,1717215047595,-232.06098135,0.00031552,7]
[328351764,1717215047604,-221.82453536,0.00031557,7]
[328351765,1717215047613,-152.67045402,0.00031571,7]
[328351766,1717215047623,-160.811542,0.00031588,7]
[328351767,1717215047632,-150.87686781,0.00031619,2]
[328351768,1717215047641,-6238.80020075,0.00031619,2]
[328351769,1717215047651,-2383.67034432,0.00031633,2]
[328351770,1717215047660,-421.43,0.00031644,2]
[328351771,1717215047669,-525.29,0.00031644,2]
[328351772,1717215047682,-525.29,0.00031644,2]
[328351773,1717215047691,-525.29,0.00031644,2]
[328351774,1717215047700,-525.29,0.00031644,2]
[328351775,1717215047710,-525.29,0.00031644,2]
[328351776,1717215047719,-525.29,0.00031644,2]
[328351777,1717215047728,-525.29,0.00031644,2]
[328351778,1717215047738,-525.29,0.00031644,2]
[328351779,1717215047747,-158.83144405,0.00031652,7]
[328351780,1717215047756,-221.82453536,0.0003167,7]
[328351781,1717215047765,-12217.83316314,0.00031691,3]
[328351782,1717215047774,-163.32828095,0.00031691,7]
[328351783,1717215047783,-204.740534,0.00031691,7]
[328351784,1717215047792,-204.740534,0.00031691,7]
[328351785,1717215047802,-151.0,0.00031691,7]
[328351786,1717215047811,-349.345084,0.00031691,7]
[328351787,1717215047822,-152.82,0.00031707,2]
[328351788,1717215047831,-150.13286761,0.00031708,7]
[328351789,1717215047840,-152.67045402,0.00031711,7]
[328351790,1717215047850,-7834.41085654,0.00031717,2]
[328351791,1717215047859,-151.0,0.00031717,7]
[328351792,1717215047868,-154.95394285,0.00031717,7]
[328351793,1717215047877,-185.484106,0.00031718,2]
[328351794,1717215047886,-168.962267,0.00031718,2]
[328351795,1717215047896,-221.82453536,0.00031718,7]
[328351796,1717215047906,-150.13286761,0.00031746,7]
[328351797,1717215047915,-2000.0,0.00031748,2]
[328351798,1717215047925,-200.0,0.00031748,2]
[328351799,1717215047936,-152.67045402,0.00031792,7]
[328351800,1717215047945,-150.13286761,0.00031803,7]
[328351801,1717215047955,-213.22229642,0.00031817,2]
[328351802,1717215047965,-221.82453536,0.00031832,7]
[328351803,1717215047974,-221.82453536,0.00031841,7]
[328351804,1717215047984,-253.80665775,0.00031844,31]
[328351805,1717215047994,-444.206614,0.00031846,2]
[328351806,1717215048003,-2561.351919,0.00031846,2]
[328351807,1717215048012,-3606.876995,0.00031846,2]
[328351808,1717215048023,-1590.543643,0.00031846,2]
[328351809,1717215048031,-601.111707,0.00031846,2]
[328351810,1717215048040,-721.375399,0.00031846,2]
[328351811,1717215048050,-318.108728,0.00031846,2]
[328351812,1717215048059,-150.13286761,0.00031855,7]
[328351813,1717215048069,-154.36304779,0.0003188,7]
[328351814,1717215048078,-157.18,0.0003189,2]
[328351815,1717215048087,-157.22719862,0.00031897,2]
[328351816,1717215048097,-221.82453536,0.00031933,7]
[328351817,1717215048107,-152.67045402,0.00031935,7]
[328351818,1717215048116,-153.73482735,0.00031937,7]
[328351819,1717215048127,-500.0,0.00031961,2]
[328351820,1717215048136,-150.0,0.00031978,2]
[328351821,1717215048146,-152.67045402,0.00031989,7]
[328351822,1717215048156,-231.18826715,0.00032,4]
[328351823,1717215048165,-334.36966222,0.00032,4]
[328351824,1717215048174,-221.82453536,0.00032,7]
[328351825,1717215048183,-628.69757734,0.00032,2]
[328351826,1717215048193,-221.82453536,0.00032034,7]
[328351827,1717215048202,-232.06098135,0.00032063,7]
[328351828,1717215048212,-2000.0,0.00032065,2]
[328351829,1717215048222,-200.0,0.00032065,2]
[328351830,1717215048232,-154.95394285,0.00032068,7]
[328351831,1717215048242,-152.67045402,0.00032068,7]
[328351832,1717215048252,-157.36540401,0.00032098,2]
[328351833,1717215048262,-2072.28303039,0.00032098,2]
[328351834,1717215048271,-152.0,0.0003211,3]
[328351835,1717215048280,-150.0,0.00032129,2]
[328351836,1717215048289,-345.0,0.000322,5]
[328351837,1717215048299,-41418.70758124,0.000322,2]
[328351838,1717215048411,-1362.98079444,0.000322,2]
[328351839,1717215106732,820.43,0.0003486,60]
[328351841,1717215273187,101383.46384369,0.00034861,60]
[328351842,1717215370583,151.0,0.0003041,30]
[328351846,1717215569400,229.23291133,0.0003045,30]
[328351850,1717215589540,155.0,0.0003,30]
[328351865,1717215936155,-155.0,0.0001713,2]
[328351866,1717215936175,-1319.16160456,0.0001713,2]
[328351867,1717216095778,-158.26093892,0.00017026,2]
[328351868,1717216095804,-1803.30077465,0.00017124,2]
[328351869,1717216095828,-1214.57828643,0.00017125,2]
[328351882,1717216231865,-1803.30077465,0.00017119,2]
[328351884,1717216231874,-150.0,0.0001712,2]
[328351886,1717216231884,-150.0,0.0001712,2]
[328351887,1717216231893,-1383.76486809,0.00017121,2]
[328351888,1717216231903,-10545.7022106,0.00017121,2]
[328351889,1717216231914,-37543.26097956,0.00017125,2]
[328351890,1717216231925,-155.17252048,0.00017129,2]
[328351891,1717216231937,-1247.36037009,0.00017129,2]
[328351892,1717216231946,-989.26147181,0.00017258,2]
[328351893,1717216231957,-150.99,0.00018839,2]
[328351894,1717216231967,-499.99,0.00019452,2]
[328351895,1717216231978,-199.9,0.00020669,2]
[328351896,1717216231987,-538.72,0.000232,2]
[328351897,1717216231996,-548.55290876,0.00024,2]
[328351898,1717216232005,-159.31,0.00024384,2]
[328351899,1717216232015,-153.9,0.00024384,2]
[328351900,1717216232024,-151.0,0.00024492,3]
[328351901,1717216232033,-2887.72052291,0.00024998,2]
[328351902,1717216232048,-542.46937748,0.00024998,2]
[328351903,1717216232057,-519.32084978,0.00025,2]
[328351904,1717216232072,-409.37848259,0.00025,2]
[328351905,1717216232082,-23.54151741,0.000252,2]
[328351906,1717216232094,-339.7200004,0.000252,2]
[328351907,1717216232105,-200.73848219,0.000252,2]
[328351908,1717216232116,-170.63,0.00025255,2]
[328351909,1717216232125,-198.72151781,0.0002526,2]
[328351910,1717216232137,-801.27848219,0.0002526,2]
[328351911,1717216232146,-538.72,0.00025464,2]
[328351912,1717216232155,-151.0,0.00025593,5]
[328351913,1717216232165,-75.60799515,0.00025727,2]
[328351914,1717216232177,-174.39200485,0.00025727,2]
[328351915,1717216232186,-209.64,0.00025819,2]
[328351916,1717216232195,-250.0,0.00026076,2]
[328351917,1717216232206,-1884.114,0.00026076,2]
[328351918,1717216232221,-250.0,0.000261,2]
[328351919,1717216232230,-2081.0736856,0.00026408,2]
[328351920,1717216232241,-3971.07024,0.00026408,2]
[328351921,1717216232253,-326.95187168,0.00026408,2]
[328351922,1717216232294,-363.6,0.00026408,2]
[328351923,1717216232309,-340.34,0.00026408,2]
[328351924,1717216232320,-7820.17420272,0.00026408,2]
[328351925,1717216232329,-151.0,0.00026694,5]
[328351926,1717216232338,-4022.42839362,0.00027,2]
[328351927,1717216232348,-806.64368738,0.0002739,2]
[328351928,1717216232357,-150.0,0.00027397,2]
[328351929,1717216232368,-150.0,0.00027534,2]
[328351930,1717216232377,-150.0,0.00027671,2]
[328351931,1717216232386,-538.72,0.00027728,2]
[328351932,1717216232396,-151.0,0.00027795,5]
[328351933,1717216232405,-150.0,0.00027808,2]
[328351934,1717216232414,-242.98912964,0.00027886,2]
[328351935,1717216232424,-150.0,0.00027945,2]
[328351936,1717216232432,-170.63,0.00027994,2]
[328351937,1717216232441,-150.0,0.00028082,2]
[328351938,1717216232451,-150.0,0.00028219,2]
[328351939,1717216232460,-150.0,0.00028356,2]
[328351940,1717216232469,-1000.0,0.00028418,2]
[328351941,1717216232478,-150.0,0.00028493,2]
[328351942,1717216232487,-150.0,0.0002863,2]
[328351943,1717216232496,-180.0,0.00028703,2]
[328351944,1717216232505,-275.24957269,0.00028767,2]
[328351945,1717216232514,-151.0,0.00028896,7]
[328351946,1717216232524,-1000.0,0.000289,2]
[328351947,1717216232533,-179.64019901,0.00028945,2]
[328351948,1717216232552,-330.90839776,0.00028945,2]
[328351949,1717216232562,-341.38,0.0002899,3]
[328351950,1717216232572,-5000.0,0.00029,2]
[328351951,1717216232582,-1485.85566556,0.00029,2]
[328351952,1717216232591,-69290.28338078,0.00029,2]
[328351953,1717216232604,-7823.73689433,0.00029,2]
[328351954,1717216232616,-339.175,0.00029,2]
[328351955,1717216232630,-1072.87948852,0.00029,2]
[328351956,1717216232641,-13443.50325055,0.00029,2]
[328351957,1717216232665,-325.09234905,0.00029,2]
[328351958,1717216232676,-3704.02949386,0.00029,2]
[328351959,1717216232688,-250.33780553,0.00029,2]
[328351960,1717216232698,-730.5607799,0.00029,2]
[328351961,1717216232885,-1327.4365,0.00029,2]
[328351963,1717216238033,-278330.4922124,0.00029,2]
[328351964,1717216238147,-14181.69517129,0.00029,2]
[328351974,1717216241289,-1350.0,0.00029,2]
[328351975,1717216241407,-107830.77767379,0.00029,2]
[328351976,1717216241416,-360.54,0.00029045,2]
[328351977,1717216241425,-1119.2656,0.00029798,2]
[328351978,1717216241435,-211.1465,0.00029798,2]
[328351979,1717216241444,-2500.0,0.00029798,2]
[328351980,1717216241453,-3420.137,0.00029798,2]